[Event "Titled Tuesday Blitz August 08 Early 2023"]
[White "Jain Kashish Manoj"]
[Black "Salinas Herrera, Pablo"]
[WhiteFideId "35081098"]
[BlackFideId "3407128"]
[WhiteElo "2622"]
[BlackElo "2832"]
[Result "1/2-1/2"]
[Round "5"]
[TimeControl "180+1"]
[Date "2023.08.08"]
[WhiteClock "0:00:04"]
[BlackClock "0:01:23"]
[Board "39"]

1. e4 {[%clk 0:03:00]}  c5 {[%clk 0:02:59]} 2. Nf3 {[%clk 0:03:00]}  d6 {[%clk 0:02:59]} 3. d4 {[%clk 0:03:01]}  cxd4 {[%clk 0:03:00]} 4. Nxd4 {[%clk 0:03:00]}  Nf6 {[%clk 0:03:01]} 5. Nc3 {[%clk 0:03:01]}  a6 {[%clk 0:03:01]} 6. Be3 {[%clk 0:03:01]}  e6 {[%clk 0:03:02]} 7. Qf3 {[%clk 0:02:58]}  Nbd7 {[%clk 0:03:00]} 8. O-O-O {[%clk 0:02:53]}  Qc7 {[%clk 0:03:01]} 9. Qg3 {[%clk 0:02:23]}  b5 {[%clk 0:03:00]} 10. Bd3 {[%clk 0:01:58]}  Bb7 {[%clk 0:02:59]} 11. a3 {[%clk 0:01:53]}  Rc8 {[%clk 0:02:58]} 12. Kb1 {[%clk 0:01:47]}  Qb8 {[%clk 0:02:58]} 13. Bd2 {[%clk 0:01:36]}  Ne5 {[%clk 0:02:50]} 14. Rhe1 {[%clk 0:01:24]}  Be7 {[%clk 0:02:49]} 15. f4 {[%clk 0:01:17]}  Nxd3 {[%clk 0:02:49]} 16. cxd3 {[%clk 0:01:13]}  O-O {[%clk 0:02:49]} 17. e5 {[%clk 0:00:59]}  dxe5 {[%clk 0:02:48]} 18. fxe5 {[%clk 0:00:59]}  Nd5 {[%clk 0:02:48]} 19. Nxd5 {[%clk 0:00:59]}  Bxd5 {[%clk 0:02:49]} 20. Bh6 {[%clk 0:00:59]}  g6 {[%clk 0:02:50]} 21. Bxf8 {[%clk 0:00:59]}  Bxf8 {[%clk 0:02:51]} 22. Rc1 {[%clk 0:00:59]}  Rd8 {[%clk 0:02:49]} 23. Nc6 {[%clk 0:00:56]}  Bxc6 {[%clk 0:02:49]} 24. Rxc6 {[%clk 0:00:57]}  b4 {[%clk 0:02:50]} 25. axb4 {[%clk 0:00:41]}  Qxb4 {[%clk 0:02:48]} 26. Rec1 {[%clk 0:00:40]}  Qb5 {[%clk 0:02:42]} 27. R1c3 {[%clk 0:00:32]}  Rb8 {[%clk 0:02:39]} 28. Qf2 {[%clk 0:00:25]}  Qxe5 {[%clk 0:02:38]} 29. Rc7 {[%clk 0:00:20]}  f5 {[%clk 0:02:31]} 30. Qh4 {[%clk 0:00:13]}  h6 {[%clk 0:02:24]} 31. Rc8 {[%clk 0:00:14]}  g5 {[%clk 0:02:13]} 32. Qh5 {[%clk 0:00:09]}  Rxc8 {[%clk 0:02:01]} 33. Qg6+ {[%clk 0:00:09]}  Kh8 {[%clk 0:01:55]} 34. Rxc8 {[%clk 0:00:08]}  Qe1+ {[%clk 0:01:56]} 35. Rc1 {[%clk 0:00:07]}  Qe3 {[%clk 0:01:50]} 36. Qf7 {[%clk 0:00:03]}  Bg7 {[%clk 0:01:39]} 37. Rc8+ {[%clk 0:00:02]}  Kh7 {[%clk 0:01:40]} 38. Qg8+ {[%clk 0:00:02]}  Kg6 {[%clk 0:01:40]} 39. Qe8+ {[%clk 0:00:03]}  Kf6 {[%clk 0:01:35]} 40. Qd8+ {[%clk 0:00:03]}  Kg6 {[%clk 0:01:32]} 41. Qe8+ {[%clk 0:00:04]}  Kh7 {[%clk 0:01:23]} 42. Qg8+ {[%clk 0:00:04]}  Kg6 {[%clk 0:01:23]} 43. Qe8+ {[%clk 0:00:04]} 1/2-1/2


[Site "https://www.chess.com"]

[Event "Titled Tuesday Blitz August 08 Early 2023"]
[White "Tristan, Leonardo"]
[Black "Zavgorodniy, Sergiy"]
[WhiteFideId "113816"]
[BlackFideId "14110148"]
[WhiteElo "2818"]
[BlackElo "2604"]
[Result "1-0"]
[Round "5"]
[TimeControl "180+1"]
[Date "2023.08.08"]
[WhiteClock "0:00:40"]
[BlackClock "0:00:06"]
[Board "47"]

1. d4 {[%clk 0:03:00]}  Nf6 {[%clk 0:02:58]} 2. Nf3 {[%clk 0:03:00]}  e6 {[%clk 0:02:58]} 3. Bf4 {[%clk 0:03:00]}  b6 {[%clk 0:02:55]} 4. e3 {[%clk 0:03:00]}  Bb7 {[%clk 0:02:56]} 5. Nbd2 {[%clk 0:03:00]}  g6 {[%clk 0:02:55]} 6. h3 {[%clk 0:03:00]}  Bg7 {[%clk 0:02:56]} 7. Be2 {[%clk 0:03:00]}  O-O {[%clk 0:02:56]} 8. O-O {[%clk 0:03:01]}  d6 {[%clk 0:02:57]} 9. Bh2 {[%clk 0:03:01]}  Nbd7 {[%clk 0:02:57]} 10. a4 {[%clk 0:03:01]}  a6 {[%clk 0:02:56]} 11. Bd3 {[%clk 0:02:35]}  Qe7 {[%clk 0:02:54]} 12. c3 {[%clk 0:02:35]}  e5 {[%clk 0:02:54]} 13. e4 {[%clk 0:02:36]}  Nh5 {[%clk 0:02:52]} 14. Re1 {[%clk 0:02:35]}  Rfe8 {[%clk 0:02:49]} 15. Nc4 {[%clk 0:02:30]}  Nf4 {[%clk 0:02:30]} 16. Bf1 {[%clk 0:02:20]}  Rad8 {[%clk 0:02:11]} 17. Qc2 {[%clk 0:02:18]}  Qf6 {[%clk 0:02:09]} 18. dxe5 {[%clk 0:01:35]}  dxe5 {[%clk 0:02:03]} 19. Nfd2 {[%clk 0:01:35]}  Nc5 {[%clk 0:01:53]} 20. Red1 {[%clk 0:01:23]}  Nfd3 {[%clk 0:01:36]} 21. Bg3 {[%clk 0:01:21]}  a5 {[%clk 0:01:14]} 22. Ne3 {[%clk 0:01:15]}  h5 {[%clk 0:01:10]} 23. Bxd3 {[%clk 0:01:05]}  Nxd3 {[%clk 0:01:09]} 24. Nd5 {[%clk 0:01:05]}  Bxd5 {[%clk 0:01:06]} 25. exd5 {[%clk 0:01:05]}  Rxd5 {[%clk 0:00:54]} 26. Ne4 {[%clk 0:01:05]}  Qf5 {[%clk 0:00:50]} 27. f3 {[%clk 0:01:05]}  Nf4 {[%clk 0:00:44]} 28. Bxf4 {[%clk 0:01:04]}  Rxd1+ {[%clk 0:00:43]} 29. Rxd1 {[%clk 0:01:01]}  Qxf4 {[%clk 0:00:43]} 30. Rd7 {[%clk 0:00:57]}  Qe3+ {[%clk 0:00:27]} 31. Kf1 {[%clk 0:00:53]}  Re6 {[%clk 0:00:17]} 32. Rxc7 {[%clk 0:00:49]}  Kh7 {[%clk 0:00:16]} 33. Rxf7 {[%clk 0:00:48]}  h4 {[%clk 0:00:12]} 34. Rd7 {[%clk 0:00:41]}  Kh6 {[%clk 0:00:06]} 35. Qd2 {[%clk 0:00:40]} 1-0


[Site "https://www.chess.com"]

[Event "Titled Tuesday Blitz August 08 Early 2023"]
[White "FoxOnTheRun97"]
[Black "Mayank Chakraborty"]
[BlackFideId "25659766"]
[WhiteElo "2569"]
[BlackElo "2809"]
[Result "0-1"]
[Round "5"]
[TimeControl "180+1"]
[Date "2023.08.08"]
[WhiteClock "0:00:08"]
[BlackClock "0:00:12"]
[Board "51"]

1. d4 {[%clk 0:03:00]}  Nf6 {[%clk 0:02:59]} 2. Bg5 {[%clk 0:03:00]}  e6 {[%clk 0:03:00]} 3. e4 {[%clk 0:02:59]}  d5 {[%clk 0:03:01]} 4. e5 {[%clk 0:02:54]}  h6 {[%clk 0:03:00]} 5. Be3 {[%clk 0:02:53]}  Nfd7 {[%clk 0:02:58]} 6. f4 {[%clk 0:02:50]}  c5 {[%clk 0:02:58]} 7. c3 {[%clk 0:02:50]}  Nc6 {[%clk 0:02:59]} 8. Nf3 {[%clk 0:02:49]}  Qa5 {[%clk 0:02:47]} 9. Qd2 {[%clk 0:02:39]}  cxd4 {[%clk 0:02:46]} 10. Nxd4 {[%clk 0:02:37]}  Nxd4 {[%clk 0:02:41]} 11. Bxd4 {[%clk 0:02:36]}  Qc7 {[%clk 0:02:35]} 12. a4 {[%clk 0:02:28]}  Nc5 {[%clk 0:02:35]} 13. Bxc5 {[%clk 0:02:18]}  Bxc5 {[%clk 0:02:34]} 14. Na3 {[%clk 0:02:19]}  O-O {[%clk 0:02:33]} 15. Nc2 {[%clk 0:02:17]}  Bd7 {[%clk 0:02:30]} 16. Nd4 {[%clk 0:02:16]}  f6 {[%clk 0:02:30]} 17. exf6 {[%clk 0:01:58]}  Rxf6 {[%clk 0:02:29]} 18. g3 {[%clk 0:01:49]}  e5 {[%clk 0:02:28]} 19. Nb5 {[%clk 0:01:17]}  Bxb5 {[%clk 0:02:12]} 20. Qxd5+ {[%clk 0:01:16]}  Kh8 {[%clk 0:02:11]} 21. Bxb5 {[%clk 0:01:15]}  exf4 {[%clk 0:01:49]} 22. O-O-O {[%clk 0:01:15]}  f3 {[%clk 0:01:36]} 23. Qe4 {[%clk 0:00:44]}  Ba3 {[%clk 0:00:43]} 24. Kb1 {[%clk 0:00:26]}  Bd6 {[%clk 0:00:33]} 25. Rhf1 {[%clk 0:00:18]}  Raf8 {[%clk 0:00:32]} 26. Bd3 {[%clk 0:00:17]}  g6 {[%clk 0:00:32]} 27. Qh4 {[%clk 0:00:16]}  Kg7 {[%clk 0:00:31]} 28. Rf2 {[%clk 0:00:11]}  Qc5 {[%clk 0:00:29]} 29. Rff1 {[%clk 0:00:09]}  f2 {[%clk 0:00:26]} 30. Bc2 {[%clk 0:00:09]}  R8f7 {[%clk 0:00:23]} 31. Qe4 {[%clk 0:00:08]}  Re7 {[%clk 0:00:22]} 32. Qd3 {[%clk 0:00:07]}  Qe5 {[%clk 0:00:19]} 33. h4 {[%clk 0:00:07]}  Qxg3 {[%clk 0:00:16]} 34. Qd4 {[%clk 0:00:04]}  Be5 {[%clk 0:00:11]} 35. Qc5 {[%clk 0:00:02]}  Bd6 {[%clk 0:00:11]} 36. Qd4 {[%clk 0:00:02]}  Qe3 {[%clk 0:00:10]} 37. Qd5 {[%clk 0:00:02]}  Qe5 {[%clk 0:00:09]} 38. Qd3 {[%clk 0:00:02]}  h5 {[%clk 0:00:09]} 39. Qc4 {[%clk 0:00:01]}  Qe6 {[%clk 0:00:08]} 40. Qd3 {[%clk 0:00:02]}  Bc5 {[%clk 0:00:08]} 41. b4 {[%clk 0:00:02]}  Be3 {[%clk 0:00:07]} 42. Kb2 {[%clk 0:00:02]}  Qe5 {[%clk 0:00:07]} 43. Qc4 {[%clk 0:00:02]}  Rc7 {[%clk 0:00:07]} 44. Qb5 {[%clk 0:00:01]}  Qxb5 {[%clk 0:00:07]} 45. axb5 {[%clk 0:00:01]}  Rf4 {[%clk 0:00:08]} 46. Rd3 {[%clk 0:00:02]}  Bb6 {[%clk 0:00:03]} 47. Bd1 {[%clk 0:00:01]}  Rxh4 {[%clk 0:00:03]} 48. Be2 {[%clk 0:00:01]}  Rf4 {[%clk 0:00:04]} 49. Kc2 {[%clk 0:00:01]}  Re7 {[%clk 0:00:04]} 50. Rd2 {[%clk 0:00:02]}  Rfe4 {[%clk 0:00:04]} 51. Bd3 {[%clk 0:00:02]}  Re1 {[%clk 0:00:04]} 52. Rdxf2 {[%clk 0:00:01]}  Bxf2 {[%clk 0:00:04]} 53. Rxf2 {[%clk 0:00:02]}  g5 {[%clk 0:00:05]} 54. Rf5 {[%clk 0:00:02]}  R1e5 {[%clk 0:00:04]} 55. Rf2 {[%clk 0:00:02]}  g4 {[%clk 0:00:05]} 56. c4 {[%clk 0:00:02]}  Kh6 {[%clk 0:00:06]} 57. Kc3 {[%clk 0:00:02]}  h4 {[%clk 0:00:06]} 58. Rf6+ {[%clk 0:00:02]}  Kh5 {[%clk 0:00:06]} 59. Rf8 {[%clk 0:00:02]}  h3 {[%clk 0:00:06]} 60. Rh8+ {[%clk 0:00:02]}  Kg5 {[%clk 0:00:07]} 61. Rg8+ {[%clk 0:00:03]}  Kf4 {[%clk 0:00:08]} 62. Kd4 {[%clk 0:00:03]}  Re1 {[%clk 0:00:08]} 63. Rf8+ {[%clk 0:00:03]}  Kg3 {[%clk 0:00:09]} 64. Rg8 {[%clk 0:00:04]}  Rd7+ {[%clk 0:00:08]} 65. Kc3 {[%clk 0:00:03]}  Re3 {[%clk 0:00:09]} 66. Kd2 {[%clk 0:00:03]}  Rdxd3+ {[%clk 0:00:09]} 67. Kc2 {[%clk 0:00:04]}  h2 {[%clk 0:00:10]} 68. Rh8 {[%clk 0:00:04]}  Ra3 {[%clk 0:00:09]} 69. b6 {[%clk 0:00:05]}  axb6 {[%clk 0:00:09]} 70. c5 {[%clk 0:00:06]}  bxc5 {[%clk 0:00:09]} 71. bxc5 {[%clk 0:00:07]}  Ra1 {[%clk 0:00:09]} 72. c6 {[%clk 0:00:07]}  bxc6 {[%clk 0:00:10]} 73. Kb2 {[%clk 0:00:07]}  Rae1 {[%clk 0:00:09]} 74. Kc2 {[%clk 0:00:07]}  h1=Q {[%clk 0:00:09]} 75. Rxh1 {[%clk 0:00:07]}  Rxh1 {[%clk 0:00:10]} 76. Kd2 {[%clk 0:00:07]}  Kf4 {[%clk 0:00:10]} 77. Kc2 {[%clk 0:00:08]}  Rg3 {[%clk 0:00:11]} 78. Kd2 {[%clk 0:00:08]}  Rh2+ {[%clk 0:00:11]} 79. Ke1 {[%clk 0:00:08]}  Rg1# {[%clk 0:00:12]} 0-1


[Site "https://www.chess.com"]

[Event "Titled Tuesday Blitz August 08 Early 2023"]
[White "Ashraf, Artin"]
[Black "Aarav Dengla"]
[WhiteFideId "22514805"]
[BlackFideId "45059756"]
[WhiteElo "2804"]
[BlackElo "2564"]
[Result "1-0"]
[Round "5"]
[TimeControl "180+1"]
[Date "2023.08.08"]
[WhiteClock "0:00:28"]
[BlackClock "0:00:00"]
[Board "52"]

1. e4 {[%clk 0:03:00]}  c5 {[%clk 0:02:44]} 2. Nf3 {[%clk 0:02:58]}  d6 {[%clk 0:02:44]} 3. c3 {[%clk 0:02:57]}  Nf6 {[%clk 0:02:43]} 4. Bd3 {[%clk 0:02:52]}  Bg4 {[%clk 0:02:39]} 5. h3 {[%clk 0:02:43]}  Bh5 {[%clk 0:02:35]} 6. Bc2 {[%clk 0:02:42]}  Nbd7 {[%clk 0:02:31]} 7. d4 {[%clk 0:02:41]}  cxd4 {[%clk 0:02:30]} 8. cxd4 {[%clk 0:02:42]}  e6 {[%clk 0:02:24]} 9. O-O {[%clk 0:02:41]}  Be7 {[%clk 0:02:22]} 10. Nc3 {[%clk 0:02:38]}  O-O {[%clk 0:02:18]} 11. Qd3 {[%clk 0:02:34]}  e5 {[%clk 0:02:08]} 12. d5 {[%clk 0:02:10]}  Rc8 {[%clk 0:02:06]} 13. Nd2 {[%clk 0:01:50]}  Nb6 {[%clk 0:01:59]} 14. b3 {[%clk 0:01:47]}  Bg6 {[%clk 0:01:56]} 15. Bb2 {[%clk 0:01:46]}  Nbxd5 {[%clk 0:01:52]} 16. Nxd5 {[%clk 0:01:45]}  Nxd5 {[%clk 0:01:51]} 17. Qxd5 {[%clk 0:01:45]}  Rxc2 {[%clk 0:01:50]} 18. Nc4 {[%clk 0:01:44]}  Re2 {[%clk 0:01:35]} 19. f3 {[%clk 0:01:39]}  b5 {[%clk 0:00:48]} 20. Qd3 {[%clk 0:01:33]}  Rxg2+ {[%clk 0:00:44]} 21. Kxg2 {[%clk 0:01:32]}  bxc4 {[%clk 0:00:45]} 22. bxc4 {[%clk 0:01:31]}  f5 {[%clk 0:00:44]} 23. Kh1 {[%clk 0:01:18]}  Qa8 {[%clk 0:00:28]} 24. Qd5+ {[%clk 0:01:13]}  Kh8 {[%clk 0:00:24]} 25. Qxa8 {[%clk 0:01:11]}  Rxa8 {[%clk 0:00:25]} 26. exf5 {[%clk 0:01:11]}  Bxf5 {[%clk 0:00:24]} 27. Kg2 {[%clk 0:01:05]}  Rc8 {[%clk 0:00:24]} 28. Rac1 {[%clk 0:00:51]}  Bd3 {[%clk 0:00:16]} 29. Rfd1 {[%clk 0:00:51]}  Bxc4 {[%clk 0:00:16]} 30. Ba3 {[%clk 0:00:52]}  Rc6 {[%clk 0:00:11]} 31. Kh1 {[%clk 0:00:31]}  h6 {[%clk 0:00:09]} 32. Rc2 {[%clk 0:00:30]}  Kg8 {[%clk 0:00:00]} 33. Rdc1 {[%clk 0:00:28]} 1-0


[Site "https://www.chess.com"]

[Event "Titled Tuesday Blitz August 08 Early 2023"]
[White "Kumsiashvili, Nikoloz"]
[Black "Janaszak, Dawid"]
[WhiteFideId "13600621"]
[BlackFideId "1119206"]
[WhiteElo "2752"]
[BlackElo "2546"]
[Result "1-0"]
[Round "5"]
[TimeControl "180+1"]
[Date "2023.08.08"]
[WhiteClock "0:00:20"]
[BlackClock "0:00:05"]
[Board "57"]

1. Nf3 {[%clk 0:03:00]}  Nf6 {[%clk 0:02:58]} 2. g3 {[%clk 0:03:00]}  g6 {[%clk 0:02:57]} 3. Bg2 {[%clk 0:03:01]}  Bg7 {[%clk 0:02:58]} 4. O-O {[%clk 0:03:02]}  O-O {[%clk 0:02:58]} 5. d3 {[%clk 0:03:01]}  d5 {[%clk 0:02:54]} 6. Nbd2 {[%clk 0:02:59]}  d4 {[%clk 0:02:55]} 7. c4 {[%clk 0:02:58]}  c5 {[%clk 0:02:54]} 8. b4 {[%clk 0:02:54]}  Nc6 {[%clk 0:02:52]} 9. bxc5 {[%clk 0:02:50]}  e5 {[%clk 0:02:51]} 10. Ng5 {[%clk 0:02:48]}  Bf5 {[%clk 0:02:37]} 11. Nge4 {[%clk 0:02:45]}  Qd7 {[%clk 0:02:33]} 12. Re1 {[%clk 0:02:37]}  Bh3 {[%clk 0:02:30]} 13. Bh1 {[%clk 0:02:37]}  Nh5 {[%clk 0:02:21]} 14. Rb1 {[%clk 0:02:34]}  Rab8 {[%clk 0:02:21]} 15. Nd6 {[%clk 0:02:26]}  f5 {[%clk 0:02:10]} 16. Bd5+ {[%clk 0:02:11]}  Kh8 {[%clk 0:02:08]} 17. Qa4 {[%clk 0:02:12]}  Nf6 {[%clk 0:01:49]} 18. Rxb7 {[%clk 0:01:59]}  Rxb7 {[%clk 0:01:31]} 19. Bxc6 {[%clk 0:01:56]}  Qc7 {[%clk 0:01:24]} 20. Bxb7 {[%clk 0:01:55]}  e4 {[%clk 0:01:17]} 21. dxe4 {[%clk 0:01:45]}  f4 {[%clk 0:01:16]} 22. e5 {[%clk 0:01:26]}  Ng4 {[%clk 0:01:14]} 23. Nf3 {[%clk 0:01:24]}  fxg3 {[%clk 0:01:09]} 24. hxg3 {[%clk 0:01:22]}  d3 {[%clk 0:01:00]} 25. exd3 {[%clk 0:01:14]}  Qxc5 {[%clk 0:00:58]} 26. d4 {[%clk 0:01:10]}  Qc7 {[%clk 0:00:55]} 27. Bf4 {[%clk 0:01:09]}  h6 {[%clk 0:00:51]} 28. Qc6 {[%clk 0:00:50]}  Qa5 {[%clk 0:00:49]} 29. e6 {[%clk 0:00:46]}  Bxd4 {[%clk 0:00:46]} 30. e7 {[%clk 0:00:29]}  Bxf2+ {[%clk 0:00:12]} 31. Kh1 {[%clk 0:00:29]}  Rg8 {[%clk 0:00:07]} 32. e8=Q {[%clk 0:00:25]}  Bxe1 {[%clk 0:00:08]} 33. Be5+ {[%clk 0:00:21]}  Nxe5 {[%clk 0:00:06]} 34. Qxe5+ {[%clk 0:00:21]}  Qxe5 {[%clk 0:00:05]} 35. Nxe5 {[%clk 0:00:21]}  Rf8 {[%clk 0:00:05]} 36. Ndf7+ {[%clk 0:00:20]}  Kg7 {[%clk 0:00:05]} 37. Qxg6# {[%clk 0:00:20]} 1-0


[Site "https://www.chess.com"]

[Event "Titled Tuesday Blitz August 08 Early 2023"]
[White "Suyarov, Mukhammadzokhid"]
[Black "Droin, Augustin"]
[WhiteFideId "14210495"]
[BlackFideId "45105987"]
[WhiteElo "2726"]
[BlackElo "2530"]
[Result "0-1"]
[Round "5"]
[TimeControl "180+1"]
[Date "2023.08.08"]
[WhiteClock "0:00:04"]
[BlackClock "0:00:33"]
[Board "61"]

1. d4 {[%clk 0:03:00]}  Nf6 {[%clk 0:02:59]} 2. Nc3 {[%clk 0:03:00]}  e6 {[%clk 0:03:00]} 3. Bf4 {[%clk 0:02:48]}  Bb4 {[%clk 0:02:59]} 4. e3 {[%clk 0:02:48]}  Nd5 {[%clk 0:02:57]} 5. Ne2 {[%clk 0:02:39]}  c5 {[%clk 0:02:45]} 6. a3 {[%clk 0:02:37]}  Bxc3+ {[%clk 0:02:45]} 7. Nxc3 {[%clk 0:02:31]}  Nxf4 {[%clk 0:02:44]} 8. exf4 {[%clk 0:02:27]}  cxd4 {[%clk 0:02:44]} 9. Qxd4 {[%clk 0:02:28]}  O-O {[%clk 0:02:44]} 10. Qd6 {[%clk 0:02:26]}  Nc6 {[%clk 0:02:35]} 11. O-O-O {[%clk 0:02:22]}  Qb6 {[%clk 0:02:32]} 12. Rd2 {[%clk 0:02:17]}  a6 {[%clk 0:02:19]} 13. Bd3 {[%clk 0:02:12]}  Qa5 {[%clk 0:02:13]} 14. Be4 {[%clk 0:02:07]}  b5 {[%clk 0:02:00]} 15. Kb1 {[%clk 0:01:55]}  Ra7 {[%clk 0:01:48]} 16. Bxc6 {[%clk 0:01:53]}  dxc6 {[%clk 0:01:46]} 17. Qxc6 {[%clk 0:01:54]}  b4 {[%clk 0:01:40]} 18. axb4 {[%clk 0:01:43]}  Qxb4 {[%clk 0:01:41]} 19. Qa4 {[%clk 0:01:42]}  Qc5 {[%clk 0:01:37]} 20. Qd4 {[%clk 0:01:38]}  Qc7 {[%clk 0:01:36]} 21. Qd6 {[%clk 0:01:33]}  Qa5 {[%clk 0:01:33]} 22. Qa3 {[%clk 0:01:28]}  Qxa3 {[%clk 0:01:23]} 23. bxa3 {[%clk 0:01:29]}  Rc7 {[%clk 0:01:24]} 24. Na2 {[%clk 0:01:20]}  Bb7 {[%clk 0:01:24]} 25. f3 {[%clk 0:01:15]}  Rc4 {[%clk 0:01:22]} 26. Rhd1 {[%clk 0:01:13]}  Rxf4 {[%clk 0:01:19]} 27. Rd4 {[%clk 0:01:13]}  g5 {[%clk 0:01:10]} 28. Rxf4 {[%clk 0:01:05]}  gxf4 {[%clk 0:01:11]} 29. Rd7 {[%clk 0:01:05]}  Rb8 {[%clk 0:01:10]} 30. Kc1 {[%clk 0:01:03]}  a5 {[%clk 0:01:10]} 31. Nc3 {[%clk 0:00:56]}  Ba6 {[%clk 0:01:05]} 32. Ra7 {[%clk 0:00:53]}  Rb6 {[%clk 0:00:58]} 33. Ne4 {[%clk 0:00:46]}  Rc6 {[%clk 0:00:50]} 34. Nf6+ {[%clk 0:00:43]}  Kg7 {[%clk 0:00:50]} 35. Nh5+ {[%clk 0:00:43]}  Kf8 {[%clk 0:00:45]} 36. Nxf4 {[%clk 0:00:44]}  e5 {[%clk 0:00:45]} 37. Ra8+ {[%clk 0:00:40]}  Kg7 {[%clk 0:00:45]} 38. Nd5 {[%clk 0:00:29]}  Bd3 {[%clk 0:00:45]} 39. Ne3 {[%clk 0:00:28]}  Bg6 {[%clk 0:00:46]} 40. Rxa5 {[%clk 0:00:27]}  f5 {[%clk 0:00:44]} 41. Ra7+ {[%clk 0:00:16]}  Kh6 {[%clk 0:00:43]} 42. g4 {[%clk 0:00:14]}  f4 {[%clk 0:00:39]} 43. Nf5+ {[%clk 0:00:14]}  Kg5 {[%clk 0:00:36]} 44. h4+ {[%clk 0:00:13]}  Kf6 {[%clk 0:00:36]} 45. Kd2 {[%clk 0:00:12]}  Bxf5 {[%clk 0:00:33]} 46. gxf5 {[%clk 0:00:12]}  Rd6+ {[%clk 0:00:33]} 47. Ke2 {[%clk 0:00:12]}  Rc6 {[%clk 0:00:34]} 48. Kd2 {[%clk 0:00:10]}  Rd6+ {[%clk 0:00:34]} 49. Kc1 {[%clk 0:00:10]}  h6 {[%clk 0:00:34]} 50. Ra4 {[%clk 0:00:08]}  Kxf5 {[%clk 0:00:34]} 51. Re4 {[%clk 0:00:09]}  Rg6 {[%clk 0:00:34]} 52. a4 {[%clk 0:00:09]}  Rg3 {[%clk 0:00:34]} 53. a5 {[%clk 0:00:09]}  Rxf3 {[%clk 0:00:35]} 54. a6 {[%clk 0:00:10]}  Kxe4 {[%clk 0:00:33]} 55. a7 {[%clk 0:00:04]}  Ra3 {[%clk 0:00:33]} 0-1


[Site "https://www.chess.com"]

[Event "Titled Tuesday Blitz August 08 Early 2023"]
[White "Yanchenko, Roman"]
[Black "Vyatkin, Dmitry"]
[WhiteFideId "4137329"]
[BlackFideId "4171900"]
[WhiteElo "2721"]
[BlackElo "2524"]
[Result "1-0"]
[Round "5"]
[TimeControl "180+1"]
[Date "2023.08.08"]
[WhiteClock "0:00:24"]
[BlackClock "0:00:29"]
[Board "64"]

1. d4 {[%clk 0:03:00]}  Nf6 {[%clk 0:02:59]} 2. Nf3 {[%clk 0:03:01]}  g6 {[%clk 0:02:55]} 3. Bf4 {[%clk 0:03:01]}  Bg7 {[%clk 0:02:54]} 4. e3 {[%clk 0:03:01]}  d5 {[%clk 0:02:49]} 5. Be2 {[%clk 0:03:01]}  O-O {[%clk 0:02:47]} 6. O-O {[%clk 0:03:02]}  c5 {[%clk 0:02:46]} 7. h3 {[%clk 0:03:01]}  Nc6 {[%clk 0:02:45]} 8. a3 {[%clk 0:03:01]}  Nd7 {[%clk 0:02:36]} 9. c3 {[%clk 0:02:59]}  e5 {[%clk 0:02:36]} 10. dxe5 {[%clk 0:02:52]}  Ndxe5 {[%clk 0:02:35]} 11. Nbd2 {[%clk 0:02:52]}  h6 {[%clk 0:02:30]} 12. Nxe5 {[%clk 0:02:50]}  Nxe5 {[%clk 0:02:30]} 13. Nf3 {[%clk 0:02:51]}  Nc6 {[%clk 0:02:24]} 14. Qd2 {[%clk 0:02:40]}  Be6 {[%clk 0:02:20]} 15. Rad1 {[%clk 0:02:40]}  Qb6 {[%clk 0:02:19]} 16. b4 {[%clk 0:02:31]}  Rfd8 {[%clk 0:02:17]} 17. Rb1 {[%clk 0:02:20]}  d4 {[%clk 0:02:03]} 18. bxc5 {[%clk 0:02:05]}  dxc3 {[%clk 0:02:03]} 19. Rxb6 {[%clk 0:01:32]}  cxd2 {[%clk 0:01:58]} 20. Rxb7 {[%clk 0:01:32]}  Bf8 {[%clk 0:01:43]} 21. Rc7 {[%clk 0:01:18]}  Rac8 {[%clk 0:01:32]} 22. Rxc8 {[%clk 0:00:49]}  Bxc8 {[%clk 0:01:32]} 23. Bd6 {[%clk 0:00:31]}  Bxd6 {[%clk 0:01:31]} 24. cxd6 {[%clk 0:00:31]}  Rxd6 {[%clk 0:01:32]} 25. Rd1 {[%clk 0:00:32]}  Ne7 {[%clk 0:00:59]} 26. Rxd2 {[%clk 0:00:32]}  Rc6 {[%clk 0:00:59]} 27. Nd4 {[%clk 0:00:24]}  Rc1+ {[%clk 0:00:58]} 28. Rd1 {[%clk 0:00:25]}  Rc3 {[%clk 0:00:59]} 29. Nb5 {[%clk 0:00:24]}  Rc2 {[%clk 0:00:53]} 30. Nxa7 {[%clk 0:00:24]}  Bxh3 {[%clk 0:00:40]} 31. Bd3 {[%clk 0:00:24]}  Rc7 {[%clk 0:00:39]} 32. Nb5 {[%clk 0:00:24]}  Bg4 {[%clk 0:00:29]} 33. f3 {[%clk 0:00:24]} 1-0


[Site "https://www.chess.com"]

[Event "Titled Tuesday Blitz August 08 Early 2023"]
[White "Mmukka"]
[Black "Csonka, Balazs"]
[BlackFideId "742910"]
[WhiteElo "2484"]
[BlackElo "2714"]
[Result "0-1"]
[Round "5"]
[TimeControl "180+1"]
[Date "2023.08.08"]
[WhiteClock "0:00:48"]
[BlackClock "0:00:24"]
[Board "66"]

1. e4 {[%clk 0:02:59]}  e5 {[%clk 0:03:00]} 2. Nf3 {[%clk 0:02:57]}  Nc6 {[%clk 0:03:01]} 3. Bb5 {[%clk 0:02:57]}  Nf6 {[%clk 0:02:58]} 4. d3 {[%clk 0:02:56]}  Ne7 {[%clk 0:02:55]} 5. Nxe5 {[%clk 0:02:43]}  c6 {[%clk 0:02:55]} 6. Ba4 {[%clk 0:02:42]}  Qa5+ {[%clk 0:02:55]} 7. c3 {[%clk 0:02:38]}  Qxe5 {[%clk 0:02:54]} 8. O-O {[%clk 0:02:37]}  Qc7 {[%clk 0:02:29]} 9. Re1 {[%clk 0:02:31]}  d6 {[%clk 0:02:21]} 10. f4 {[%clk 0:02:27]}  g6 {[%clk 0:02:11]} 11. e5 {[%clk 0:02:13]}  Nfd5 {[%clk 0:02:01]} 12. c4 {[%clk 0:02:08]}  Nb6 {[%clk 0:01:58]} 13. Bc2 {[%clk 0:02:08]}  Bg7 {[%clk 0:01:49]} 14. exd6 {[%clk 0:02:07]}  Qxd6 {[%clk 0:01:50]} 15. Nc3 {[%clk 0:02:05]}  O-O {[%clk 0:01:45]} 16. Ne4 {[%clk 0:02:04]}  Qd8 {[%clk 0:01:42]} 17. a4 {[%clk 0:01:57]}  a5 {[%clk 0:01:36]} 18. Be3 {[%clk 0:01:55]}  Nf5 {[%clk 0:01:28]} 19. Bf2 {[%clk 0:01:52]}  Nd7 {[%clk 0:01:28]} 20. Rb1 {[%clk 0:01:48]}  Nd4 {[%clk 0:01:19]} 21. c5 {[%clk 0:01:33]}  Nf6 {[%clk 0:01:04]} 22. Nd6 {[%clk 0:01:31]}  Nf5 {[%clk 0:01:03]} 23. Nc4 {[%clk 0:01:28]}  Be6 {[%clk 0:00:58]} 24. Nb6 {[%clk 0:01:27]}  Ra7 {[%clk 0:00:55]} 25. b4 {[%clk 0:01:26]}  axb4 {[%clk 0:00:53]} 26. Rxb4 {[%clk 0:01:26]}  Nd5 {[%clk 0:00:53]} 27. Rbe4 {[%clk 0:01:19]}  Nc3 {[%clk 0:00:47]} 28. Qf3 {[%clk 0:01:13]}  Nxe4 {[%clk 0:00:46]} 29. dxe4 {[%clk 0:01:13]}  Nd4 {[%clk 0:00:46]} 30. Qd3 {[%clk 0:01:13]}  Nxc2 {[%clk 0:00:44]} 31. Qxc2 {[%clk 0:01:14]}  Qf6 {[%clk 0:00:38]} 32. g3 {[%clk 0:01:09]}  Qc3 {[%clk 0:00:36]} 33. Qd1 {[%clk 0:01:04]}  Raa8 {[%clk 0:00:29]} 34. Nxa8 {[%clk 0:01:02]}  Rxa8 {[%clk 0:00:29]} 35. e5 {[%clk 0:01:02]}  Bd5 {[%clk 0:00:28]} 36. Bd4 {[%clk 0:01:00]}  Qc4 {[%clk 0:00:28]} 37. Bf2 {[%clk 0:00:54]}  Qxa4 {[%clk 0:00:25]} 38. f5 {[%clk 0:00:51]}  Qxd1 {[%clk 0:00:24]} 39. Rxd1 {[%clk 0:00:48]}  Bxe5 {[%clk 0:00:24]} 0-1


[Site "https://www.chess.com"]